[Event "*** Titled Tuesday Blitz"]
[Site "Chess.com"]
[Date "2020.03.03"]
[Round "6"]
[White "freshfoodcompany"]
[Black "SnekkerAndersen"]
[Result "0-1"]
[WhiteElo "2215"]
[BlackElo "2494"]
[TimeControl "180+1"]
[EndTime "10:03:04 PST"]
[Termination "SnekkerAndersen won on time"]

1. d4 {[%clk 0:03:00.9]} 1... e6 {[%clk 0:02:46.7]} 2. c4 {[%clk 0:03:01.1]}
2... Ke7 {[%clk 0:02:47.6]} 3. Nc3 {[%clk 0:02:58]} 3... Qe8 {[%clk 0:02:47.9]}
4. d5 {[%clk 0:02:53.3]} 4... Kd8 {[%clk 0:02:48.8]} 5. e4 {[%clk 0:02:47.2]}
5... Bb4 {[%clk 0:02:34.8]} 6. Bd3 {[%clk 0:02:32.6]} 6... d6 {[%clk 0:02:28.7]}
7. a3 {[%clk 0:02:29.6]} 7... Bxc3+ {[%clk 0:02:27.9]} 8. bxc3 {[%clk
0:02:28.5]} 8... Nd7 {[%clk 0:02:27.5]} 9. Bg5+ {[%clk 0:02:16]} 9... f6 {[%clk
0:02:20.9]} 10. Bf4 {[%clk 0:02:07.3]} 10... Nc5 {[%clk 0:02:19.2]} 11. f3
{[%clk 0:01:55.8]} 11... f5 {[%clk 0:02:11.9]} 12. Bg5+ {[%clk 0:01:45.4]} 12...
Nf6 {[%clk 0:02:10.9]} 13. Bxf6+ {[%clk 0:01:41.2]} 13... gxf6 {[%clk
0:02:09.8]} 14. exf5 {[%clk 0:01:39]} 14... exd5+ {[%clk 0:02:06.8]} 15. Ne2
{[%clk 0:01:37.4]} 15... dxc4 {[%clk 0:02:03]} 16. Bxc4 {[%clk 0:01:34.5]} 16...
Qe3 {[%clk 0:01:56.1]} 17. Qd4 {[%clk 0:01:24.9]} 17... Qxd4 {[%clk 0:01:47.7]}
18. Nxd4 {[%clk 0:01:22.2]} 18... c6 {[%clk 0:01:44.7]} 19. Kf2 {[%clk
0:01:17.6]} 19... d5 {[%clk 0:01:44.8]} 20. Be2 {[%clk 0:01:14.4]} 20... Re8
{[%clk 0:01:44.1]} 21. c4 {[%clk 0:01:11.1]} 21... Bd7 {[%clk 0:01:29.4]} 22.
cxd5 {[%clk 0:01:00.9]} 22... cxd5 {[%clk 0:01:30.3]} 23. Rhd1 {[%clk
0:00:56.9]} 23... Kc7 {[%clk 0:01:26]} 24. Rac1 {[%clk 0:00:51.9]} 24... Kd6
{[%clk 0:01:24.9]} 25. g4 {[%clk 0:00:43.6]} 25... Rac8 {[%clk 0:01:24.3]} 26.
Nb5+ {[%clk 0:00:39.1]} 26... Bxb5 {[%clk 0:01:20.4]} 27. Bxb5 {[%clk
0:00:38.3]} 27... Red8 {[%clk 0:01:08.8]} 28. Rc2 {[%clk 0:00:27]} 28... Nd7
{[%clk 0:01:01.9]} 29. Rcd2 {[%clk 0:00:24.8]} 29... Nb6 {[%clk 0:01:01.5]} 30.
Bd3 {[%clk 0:00:21.5]} 30... Rc3 {[%clk 0:00:58.1]} 31. Be4 {[%clk 0:00:20.4]}
31... Ke5 {[%clk 0:00:56.9]} 32. a4 {[%clk 0:00:18.1]} 32... Rc5 {[%clk
0:00:53.5]} 33. Re2 {[%clk 0:00:11.6]} 33... Kf4 {[%clk 0:00:35.6]} 34. Bc2
{[%clk 0:00:09.5]} 34... d4 {[%clk 0:00:31.1]} 35. h4 {[%clk 0:00:08.1]} 35...
Rxc2 {[%clk 0:00:22.8]} 36. Rxc2 {[%clk 0:00:06.9]} 36... Nxa4 {[%clk
0:00:17.3]} 37. Rc4 {[%clk 0:00:04.2]} 37... b5 {[%clk 0:00:12.2]} 0-1

[Event "*** Titled Tuesday Blitz"]
[Site "Chess.com"]
[Date "2020.03.03"]
[Round "6"]
[White "vugarrasulov"]
[Black "SantoBlue"]
[Result "1-0"]
[WhiteElo "2898"]
[BlackElo "2755"]
[TimeControl "180+1"]
[EndTime "10:03:07 PST"]
[Termination "vugarrasulov won by resignation"]

1. d4 {[%clk 0:03:00.9]} 1... d5 {[%clk 0:02:58.2]} 2. Nf3 {[%clk 0:03:00.3]}
2... c6 {[%clk 0:02:59.1]} 3. g3 {[%clk 0:02:59.6]} 3... Nf6 {[%clk 0:03:00]} 4.
Bg2 {[%clk 0:03:00.1]} 4... Bg4 {[%clk 0:02:54.8]} 5. O-O {[%clk 0:03:00]} 5...
Nbd7 {[%clk 0:02:52]} 6. Nbd2 {[%clk 0:02:51.4]} 6... e6 {[%clk 0:02:51.7]} 7.
c4 {[%clk 0:02:51.9]} 7... Be7 {[%clk 0:02:47.4]} 8. Qb3 {[%clk 0:02:50.9]} 8...
Qb6 {[%clk 0:02:44.2]} 9. h3 {[%clk 0:02:45.6]} 9... Bh5 {[%clk 0:02:42.2]} 10.
c5 {[%clk 0:02:44.2]} 10... Qc7 {[%clk 0:02:36.7]} 11. Re1 {[%clk 0:02:24]}
11... b6 {[%clk 0:02:34.7]} 12. cxb6 {[%clk 0:02:23.5]} 12... axb6 {[%clk
0:02:35.6]} 13. e4 {[%clk 0:02:21.6]} 13... dxe4 {[%clk 0:02:35]} 14. Nxe4
{[%clk 0:02:22.5]} 14... Nxe4 {[%clk 0:02:33.6]} 15. Rxe4 {[%clk 0:02:23.4]}
15... Nf6 {[%clk 0:02:34.2]} 16. Re1 {[%clk 0:02:17.2]} 16... Nd5 {[%clk
0:02:30.9]} 17. Ne5 {[%clk 0:02:17]} 17... O-O {[%clk 0:02:29.5]} 18. Bd2 {[%clk
0:02:11.9]} 18... Bd6 {[%clk 0:02:12.9]} 19. Rac1 {[%clk 0:02:00.6]} 19... Bxe5
{[%clk 0:02:00.7]} 20. Rxe5 {[%clk 0:01:59.9]} 20... Bg6 {[%clk 0:02:00.6]} 21.
h4 {[%clk 0:01:54.2]} 21... h6 {[%clk 0:01:55.4]} 22. g4 {[%clk 0:01:46.9]}
22... Rfc8 {[%clk 0:01:47.3]} 23. h5 {[%clk 0:01:43.6]} 23... Bh7 {[%clk
0:01:47.4]} 24. g5 {[%clk 0:01:40.8]} 24... hxg5 {[%clk 0:01:48.3]} 25. Rxg5
{[%clk 0:01:41.1]} 25... f6 {[%clk 0:01:42]} 26. Rg3 {[%clk 0:01:39.3]} 26...
Kh8 {[%clk 0:01:41.8]} 27. a3 {[%clk 0:01:23.1]} 27... Qf7 {[%clk 0:01:41.5]}
28. Re1 {[%clk 0:01:19.7]} 28... Bf5 {[%clk 0:01:38.6]} 29. Bh3 {[%clk
0:01:00.8]} 29... Qxh5 {[%clk 0:01:30.8]} 30. Rxe6 {[%clk 0:00:47.8]} 30... Kg8
{[%clk 0:01:16.1]} 31. Rxc6 {[%clk 0:00:39.5]} 31... Bxh3 {[%clk 0:01:06.9]} 32.
Rxh3 {[%clk 0:00:39.4]} 32... Qxh3 {[%clk 0:00:32.3]} 33. Qxh3 {[%clk
0:00:34.3]} 33... Rxc6 {[%clk 0:00:32.2]} 34. Qd7 {[%clk 0:00:34.8]} 34... Rac8
{[%clk 0:00:18.2]} 35. Qxd5+ {[%clk 0:00:34.4]} 35... Kh7 {[%clk 0:00:19.1]} 36.
Bc3 {[%clk 0:00:34.2]} 36... R6c7 {[%clk 0:00:18.3]} 37. Qf5+ {[%clk 0:00:33.3]}
37... Kg8 {[%clk 0:00:18.2]} 38. d5 {[%clk 0:00:33.3]} 38... Rd8 {[%clk
0:00:18.8]} 39. Qe6+ {[%clk 0:00:33.5]} 39... Kh7 {[%clk 0:00:18.5]} 40. d6
{[%clk 0:00:31.9]} 40... Rc6 {[%clk 0:00:19.1]} 41. Qf5+ {[%clk 0:00:28.1]}
41... Kh8 {[%clk 0:00:15.7]} 42. Qh5+ {[%clk 0:00:28.3]} 1-0

[Event "*** Titled Tuesday Blitz"]
[Site "Chess.com"]
[Date "2020.03.03"]
[Round "6"]
[White "viktorko131"]
[Black "HZMC92"]
[Result "0-1"]
[WhiteElo "2100"]
[BlackElo "2372"]
[TimeControl "180+1"]
[EndTime "10:03:08 PST"]
[Termination "HZMC92 won on time"]

1. e4 {[%clk 0:03:00.9]} 1... c5 {[%clk 0:02:59.7]} 2. Nf3 {[%clk 0:03:00.4]}
2... Nc6 {[%clk 0:02:59.5]} 3. d4 {[%clk 0:03:00.7]} 3... cxd4 {[%clk
0:02:59.8]} 4. Nxd4 {[%clk 0:03:01.6]} 4... g6 {[%clk 0:03:00.4]} 5. Nc3 {[%clk
0:03:00.7]} 5... Bg7 {[%clk 0:03:00.7]} 6. Be3 {[%clk 0:03:00.8]} 6... Nf6
{[%clk 0:03:00.4]} 7. Bc4 {[%clk 0:03:00.4]} 7... Qa5 {[%clk 0:03:00.9]} 8. O-O
{[%clk 0:02:57.7]} 8... O-O {[%clk 0:03:00.8]} 9. Bb3 {[%clk 0:02:55.6]} 9... d6
{[%clk 0:02:58.6]} 10. h3 {[%clk 0:02:55.5]} 10... Nxd4 {[%clk 0:02:52.3]} 11.
Bxd4 {[%clk 0:02:54.4]} 11... Be6 {[%clk 0:02:52.9]} 12. Re1 {[%clk 0:02:53.5]}
12... Rfd8 {[%clk 0:02:45.1]} 13. Nd5 {[%clk 0:02:44.9]} 13... Bxd5 {[%clk
0:02:29.5]} 14. exd5 {[%clk 0:02:44.3]} 14... Re8 {[%clk 0:02:21.5]} 15. c3
{[%clk 0:02:13.3]} 15... Rac8 {[%clk 0:01:58.6]} 16. Qf3 {[%clk 0:01:33.1]}
16... b5 {[%clk 0:01:42.3]} 17. Re2 {[%clk 0:01:25.4]} 17... Nd7 {[%clk
0:01:16.3]} 18. Bxg7 {[%clk 0:00:54]} 18... Kxg7 {[%clk 0:01:16]} 19. Rae1
{[%clk 0:00:54.4]} 19... Qd8 {[%clk 0:00:58.2]} 20. Qd3 {[%clk 0:00:48.1]} 20...
a6 {[%clk 0:00:48.1]} 21. f4 {[%clk 0:00:46.8]} 21... Nc5 {[%clk 0:00:40.5]} 22.
Qd4+ {[%clk 0:00:45]} 22... Kg8 {[%clk 0:00:39.7]} 23. Kh2 {[%clk 0:00:40.8]}
23... Qd7 {[%clk 0:00:18.2]} 24. Qd2 {[%clk 0:00:11.8]} 24... Nxb3 {[%clk
0:00:18.1]} 25. axb3 {[%clk 0:00:11.5]} 25... Rc7 {[%clk 0:00:18.3]} 26. Re4
{[%clk 0:00:09.1]} 26... Qf5 {[%clk 0:00:18]} 27. g4 {[%clk 0:00:07.7]} 27...
Qf6 {[%clk 0:00:17.8]} 28. Qe3 {[%clk 0:00:07]} 28... Kf8 {[%clk 0:00:17.8]} 29.
Kg3 {[%clk 0:00:05.7]} 29... h6 {[%clk 0:00:17]} 30. h4 {[%clk 0:00:04.5]} 30...
Qg7 {[%clk 0:00:16.9]} 31. g5 {[%clk 0:00:03.2]} 31... hxg5 {[%clk 0:00:17]} 32.
hxg5 {[%clk 0:00:03.5]} 32... f6 {[%clk 0:00:17]} 33. gxf6 {[%clk 0:00:02.6]}
33... Qxf6 {[%clk 0:00:17.9]} 34. Re6 {[%clk 0:00:02.4]} 34... Qf5 {[%clk
0:00:18.5]} 35. Qd4 {[%clk 0:00:02.2]} 35... Kf7 {[%clk 0:00:18.6]} 36. R1e5
{[%clk 0:00:01.4]} 36... Qc2 {[%clk 0:00:14.9]} 0-1

[Event "*** Titled Tuesday Blitz"]
[Site "Chess.com"]
[Date "2020.03.03"]
[Round "6"]
[White "Funkmaus"]
[Black "hongnhung1234"]
[Result "0-1"]
[WhiteElo "2215"]
[BlackElo "2247"]
[TimeControl "180+1"]
[EndTime "10:03:09 PST"]
[Termination "hongnhung1234 won by resignation"]

1. d4 {[%clk 0:03:00.9]} 1... f5 {[%clk 0:02:59.8]} 2. Bg5 {[%clk 0:03:00.2]}
2... g6 {[%clk 0:02:59.2]} 3. h4 {[%clk 0:02:58.6]} 3... h6 {[%clk 0:02:57.6]}
4. Bf4 {[%clk 0:02:58.4]} 4... Bg7 {[%clk 0:02:57.7]} 5. e3 {[%clk 0:02:58.8]}
5... Nf6 {[%clk 0:02:57.1]} 6. c4 {[%clk 0:02:59.1]} 6... d6 {[%clk 0:02:56.1]}
7. Nc3 {[%clk 0:02:59.6]} 7... O-O {[%clk 0:02:56.3]} 8. Bd3 {[%clk 0:02:57.4]}
8... Nh5 {[%clk 0:02:50.6]} 9. Bh2 {[%clk 0:02:53.5]} 9... e5 {[%clk 0:02:46.1]}
10. Nge2 {[%clk 0:02:46.1]} 10... Qxh4 {[%clk 0:02:34.1]} 11. Qb3 {[%clk
0:02:26.5]} 11... Kh7 {[%clk 0:02:21.2]} 12. g3 {[%clk 0:02:09]} 12... Qd8
{[%clk 0:02:17.8]} 13. O-O-O {[%clk 0:02:00.9]} 13... Nc6 {[%clk 0:02:17.6]} 14.
d5 {[%clk 0:01:50.7]} 14... Nb8 {[%clk 0:02:09.3]} 15. g4 {[%clk 0:01:48.5]}
15... Nf6 {[%clk 0:01:59.6]} 16. gxf5 {[%clk 0:01:42.9]} 16... gxf5 {[%clk
0:01:49]} 17. Qc2 {[%clk 0:01:40.5]} 17... e4 {[%clk 0:01:45.7]} 18. Nxe4 {[%clk
0:01:37.1]} 18... fxe4 {[%clk 0:01:46.1]} 19. Bxe4+ {[%clk 0:01:37.7]} 19...
Nxe4 {[%clk 0:01:45.9]} 20. Qxe4+ {[%clk 0:01:38.3]} 20... Bf5 {[%clk
0:01:46.2]} 21. Qg2 {[%clk 0:01:29.6]} 21... Qf6 {[%clk 0:01:45.2]} 22. Nd4
{[%clk 0:01:28.2]} 22... Nd7 {[%clk 0:01:40.2]} 23. Bf4 {[%clk 0:01:20]} 23...
c5 {[%clk 0:01:27.9]} 24. dxc6 {[%clk 0:01:16.8]} 24... bxc6 {[%clk 0:01:28.8]}
25. Qxc6 {[%clk 0:01:08.5]} 25... Rac8 {[%clk 0:01:20.9]} 26. Qxd6 {[%clk
0:00:49.2]} 26... Rxc4+ {[%clk 0:01:20.2]} 27. Kd2 {[%clk 0:00:43.1]} 27... Qxd6
{[%clk 0:00:54.8]} 28. Bxd6 {[%clk 0:00:44]} 28... Rf6 {[%clk 0:00:46.7]} 29.
Ba3 {[%clk 0:00:25.6]} 29... Nc5 {[%clk 0:00:34.9]} 30. f3 {[%clk 0:00:20.3]}
30... Ne6 {[%clk 0:00:33.3]} 31. Nxf5 {[%clk 0:00:15.5]} 31... Rxf5 {[%clk
0:00:32.7]} 32. e4 {[%clk 0:00:14.9]} 32... Rxf3 {[%clk 0:00:32.1]} 33. Rdf1
{[%clk 0:00:11.1]} 33... Rxf1 {[%clk 0:00:32.1]} 34. Rxf1 {[%clk 0:00:11.8]}
34... Rxe4 {[%clk 0:00:32.4]} 35. Rf7 {[%clk 0:00:12.2]} 35... Kg6 {[%clk
0:00:32]} 36. Rxa7 {[%clk 0:00:12.2]} 36... Rd4+ {[%clk 0:00:31.3]} 37. Ke3
{[%clk 0:00:11.6]} 37... Rd1 {[%clk 0:00:31.2]} 38. Ra6 {[%clk 0:00:11.6]} 38...
Kf5 {[%clk 0:00:31]} 39. Ra5+ {[%clk 0:00:11.6]} 39... Kg4 {[%clk 0:00:29.9]}
40. Be7 {[%clk 0:00:10.6]} 40... h5 {[%clk 0:00:28.7]} 41. Ra4+ {[%clk
0:00:10.6]} 41... Bd4+ {[%clk 0:00:28.2]} 42. Ke2 {[%clk 0:00:08.7]} 42... Rb1
{[%clk 0:00:28]} 43. Bf6 {[%clk 0:00:07.6]} 43... Rxb2+ {[%clk 0:00:27.7]} 44.
Kd3 {[%clk 0:00:08.2]} 44... Nc5+ {[%clk 0:00:27.2]} 45. Kxd4 {[%clk 0:00:07.4]}
45... Nxa4 {[%clk 0:00:27.7]} 46. Ke3 {[%clk 0:00:05.7]} 46... Rxa2 {[%clk
0:00:27.8]} 0-1

[Event "*** Titled Tuesday Blitz"]
[Site "Chess.com"]
[Date "2020.03.03"]
[Round "6"]
[White "Atakishiyev04"]
[Black "Micki-taryan"]
[Result "0-1"]
[WhiteElo "2701"]
[BlackElo "3012"]
[TimeControl "180+1"]
[EndTime "10:03:12 PST"]
[Termination "Micki-taryan won on time"]

1. d4 {[%clk 0:03:00.9]} 1... Nf6 {[%clk 0:02:57.8]} 2. c4 {[%clk 0:03:01.2]}
2... e6 {[%clk 0:02:58.4]} 3. Nc3 {[%clk 0:03:01]} 3... Bb4 {[%clk 0:02:58]} 4.
Qc2 {[%clk 0:03:00.8]} 4... d5 {[%clk 0:02:58.2]} 5. cxd5 {[%clk 0:02:58.9]}
5... exd5 {[%clk 0:02:59.1]} 6. Bg5 {[%clk 0:02:57.4]} 6... h6 {[%clk
0:02:58.6]} 7. Bh4 {[%clk 0:02:56.1]} 7... c6 {[%clk 0:02:57.9]} 8. e3 {[%clk
0:02:55.5]} 8... Nbd7 {[%clk 0:02:57.6]} 9. Bd3 {[%clk 0:02:55]} 9... Be7 {[%clk
0:02:56.3]} 10. Nge2 {[%clk 0:02:54.4]} 10... O-O {[%clk 0:02:51.9]} 11. O-O
{[%clk 0:02:53.5]} 11... Re8 {[%clk 0:02:49.5]} 12. Rad1 {[%clk 0:02:50.9]}
12... Nh5 {[%clk 0:02:42.1]} 13. Bxe7 {[%clk 0:02:49]} 13... Qxe7 {[%clk
0:02:43]} 14. Ng3 {[%clk 0:02:48]} 14... Nxg3 {[%clk 0:02:42.5]} 15. hxg3 {[%clk
0:02:48.9]} 15... Nf6 {[%clk 0:02:42.9]} 16. Rfe1 {[%clk 0:02:43.2]} 16... Be6
{[%clk 0:02:42.2]} 17. a3 {[%clk 0:02:43]} 17... c5 {[%clk 0:02:38.6]} 18. dxc5
{[%clk 0:02:41.6]} 18... Qxc5 {[%clk 0:02:39.5]} 19. Bf5 {[%clk 0:02:32.4]}
19... Qb6 {[%clk 0:02:33.4]} 20. Bxe6 {[%clk 0:02:28.8]} 20... fxe6 {[%clk
0:02:32.6]} 21. Rd2 {[%clk 0:02:09]} 21... Rac8 {[%clk 0:02:30.1]} 22. Qg6
{[%clk 0:02:07.5]} 22... Qc7 {[%clk 0:02:22.5]} 23. g4 {[%clk 0:01:56.7]} 23...
Qf7 {[%clk 0:02:22.2]} 24. Qxf7+ {[%clk 0:01:52.5]} 24... Kxf7 {[%clk
0:02:23.1]} 25. f3 {[%clk 0:01:53]} 25... Red8 {[%clk 0:02:23]} 26. Red1 {[%clk
0:01:52.7]} 26... Ke7 {[%clk 0:02:23.5]} 27. Kf2 {[%clk 0:01:52.4]} 27... a6
{[%clk 0:02:23.5]} 28. Kg3 {[%clk 0:01:52.4]} 28... Rd7 {[%clk 0:02:20.8]} 29.
Rd4 {[%clk 0:01:39]} 29... Rcd8 {[%clk 0:02:15.6]} 30. R4d2 {[%clk 0:01:15]}
30... e5 {[%clk 0:02:11]} 31. a4 {[%clk 0:01:15]} 31... d4 {[%clk 0:02:00.2]}
32. exd4 {[%clk 0:01:14.6]} 32... Rxd4 {[%clk 0:02:00.9]} 33. Rxd4 {[%clk
0:01:13.3]} 33... Rxd4 {[%clk 0:02:01.1]} 34. Rxd4 {[%clk 0:01:07]} 34... exd4
{[%clk 0:02:02]} 35. Ne2 {[%clk 0:01:06.3]} 35... d3 {[%clk 0:02:02.2]} 36. Nc3
{[%clk 0:01:01.8]} 36... Kd6 {[%clk 0:01:56.4]} 37. Kf2 {[%clk 0:01:01.6]} 37...
Kc5 {[%clk 0:01:38.6]} 38. Ke3 {[%clk 0:01:01.6]} 38... Kc4 {[%clk 0:01:38.8]}
39. Kd2 {[%clk 0:00:55.6]} 39... Nd7 {[%clk 0:01:32.7]} 40. Ne4 {[%clk
0:00:51.6]} 40... Ne5 {[%clk 0:01:33]} 41. Nd6+ {[%clk 0:00:49.9]} 41... Kb3
{[%clk 0:01:24.3]} 42. Nxb7 {[%clk 0:00:47.3]} 42... Nc4+ {[%clk 0:01:18.1]} 43.
Kxd3 {[%clk 0:00:46.4]} 43... Nxb2+ {[%clk 0:01:18.7]} 44. Ke4 {[%clk
0:00:46.7]} 44... Nxa4 {[%clk 0:01:14.9]} 45. Kf5 {[%clk 0:00:45.8]} 45... Kb4
{[%clk 0:00:58.8]} 46. Kg6 {[%clk 0:00:30.4]} 46... Nc5 {[%clk 0:00:59.1]} 47.
Nxc5 {[%clk 0:00:13.8]} 47... Kxc5 {[%clk 0:01:00]} 48. Kxg7 {[%clk 0:00:14.1]}
48... a5 {[%clk 0:01:00.6]} 49. Kxh6 {[%clk 0:00:13.3]} 49... a4 {[%clk
0:00:56.8]} 50. g5 {[%clk 0:00:11.8]} 50... a3 {[%clk 0:00:57.7]} 51. g6 {[%clk
0:00:06.1]} 51... a2 {[%clk 0:00:58.6]} 52. g7 {[%clk 0:00:05]} 52... a1=Q
{[%clk 0:00:59.5]} 53. g8=Q {[%clk 0:00:04.4]} 53... Qh1+ {[%clk 0:01:00.1]} 54.
Kg7 {[%clk 0:00:05]} 54... Qxg2+ {[%clk 0:01:00.6]} 0-1

[Event "*** Titled Tuesday Blitz"]
[Site "Chess.com"]
[Date "2020.03.03"]
[Round "6"]
[White "TST2014"]
[Black "DishonorOnYourCow"]
[Result "1-0"]
[WhiteElo "2590"]
[BlackElo "2292"]
[TimeControl "180+1"]
[EndTime "10:03:12 PST"]
[Termination "TST2014 won by resignation"]

1. d4 {[%clk 0:03:00.9]} 1... Nf6 {[%clk 0:02:59.5]} 2. c4 {[%clk 0:02:59.3]}
2... g6 {[%clk 0:02:59.7]} 3. Nf3 {[%clk 0:02:58.8]} 3... Bg7 {[%clk 0:02:59.4]}
4. Nc3 {[%clk 0:02:58.7]} 4... d5 {[%clk 0:02:59.5]} 5. Bg5 {[%clk 0:02:58.4]}
5... Ne4 {[%clk 0:02:57.5]} 6. Bh4 {[%clk 0:02:57.5]} 6... Nxc3 {[%clk 0:02:57]}
7. bxc3 {[%clk 0:02:58.4]} 7... dxc4 {[%clk 0:02:57.2]} 8. Qa4+ {[%clk 0:02:58]}
8... Bd7 {[%clk 0:02:52.5]} 9. Qxc4 {[%clk 0:02:57.7]} 9... O-O {[%clk
0:02:51.9]} 10. e4 {[%clk 0:02:50.1]} 10... Be6 {[%clk 0:02:38.3]} 11. Qb4
{[%clk 0:02:42.7]} 11... Re8 {[%clk 0:02:00.6]} 12. Qxb7 {[%clk 0:02:27.3]}
12... Nd7 {[%clk 0:02:00.3]} 13. Ng5 {[%clk 0:02:26.6]} 13... c5 {[%clk
0:01:46.6]} 14. Nxe6 {[%clk 0:02:25.2]} 14... fxe6 {[%clk 0:01:47.5]} 15. Bc4
{[%clk 0:02:24.1]} 15... Nf8 {[%clk 0:01:33.1]} 16. O-O {[%clk 0:02:08.3]} 16...
cxd4 {[%clk 0:01:23.7]} 17. cxd4 {[%clk 0:01:57.6]} 17... Qxd4 {[%clk
0:01:24.6]} 18. Rac1 {[%clk 0:01:53.4]} 18... Rab8 {[%clk 0:00:42.6]} 19. Qc6
{[%clk 0:01:51.9]} 19... Qd6 {[%clk 0:00:39.7]} 20. Bb5 {[%clk 0:01:40.6]} 20...
Red8 {[%clk 0:00:33.6]} 21. Qxd6 {[%clk 0:01:31.3]} 21... Rxd6 {[%clk
0:00:33.3]} 22. Bxe7 {[%clk 0:01:31.5]} 22... Rd2 {[%clk 0:00:27.7]} 23. a4
{[%clk 0:01:29.5]} 23... Kf7 {[%clk 0:00:24.1]} 24. Bg5 {[%clk 0:01:26.6]} 24...
Ra2 {[%clk 0:00:15.2]} 25. Rc7+ {[%clk 0:01:25.9]} 25... Kg8 {[%clk 0:00:15.2]}
26. Rxa7 {[%clk 0:01:22.4]} 26... Bd4 {[%clk 0:00:12.6]} 27. Rc7 {[%clk
0:01:16.5]} 27... Bb6 {[%clk 0:00:12.3]} 28. Rc6 {[%clk 0:01:06.1]} 28... Kg7
{[%clk 0:00:12.1]} 29. e5 {[%clk 0:01:03.5]} 29... Kf7 {[%clk 0:00:08.3]} 30. h4
{[%clk 0:01:00.6]} 30... Nd7 {[%clk 0:00:07.4]} 31. Bc4 {[%clk 0:00:38.5]} 31...
Rxa4 {[%clk 0:00:07]} 32. Bxe6+ {[%clk 0:00:37.6]} 32... Ke8 {[%clk 0:00:07.2]}
33. Bd5 {[%clk 0:00:27.7]} 33... Nxe5 {[%clk 0:00:06.3]} 34. Re6+ {[%clk
0:00:27.7]} 34... Kd7 {[%clk 0:00:05.5]} 35. Rxe5 {[%clk 0:00:28]} 35... Rf8
{[%clk 0:00:05.6]} 36. Bf3 {[%clk 0:00:26]} 36... Ra2 {[%clk 0:00:04.9]} 37.
Re7+ {[%clk 0:00:24.4]} 37... Kd6 {[%clk 0:00:05]} 38. Rxh7 {[%clk 0:00:24.4]}
38... Rc8 {[%clk 0:00:04.8]} 39. Rg7 {[%clk 0:00:24.5]} 39... Rcc2 {[%clk
0:00:04.3]} 40. Rxg6+ {[%clk 0:00:24.8]} 40... Kc7 {[%clk 0:00:04.5]} 41. Be3
{[%clk 0:00:24.3]} 1-0

[Event "*** Titled Tuesday Blitz"]
[Site "Chess.com"]
[Date "2020.03.03"]
[Round "6"]
[White "Msb2"]
[Black "Gabix_94"]
[Result "1/2-1/2"]
[WhiteElo "2860"]
[BlackElo "2699"]
[TimeControl "180+1"]
[EndTime "10:03:14 PST"]
[Termination "Game drawn by repetition"]

1. d4 {[%clk 0:03:00.9]} 1... Nf6 {[%clk 0:02:58.3]} 2. Nf3 {[%clk 0:03:00.6]}
2... e6 {[%clk 0:02:57.7]} 3. Bf4 {[%clk 0:02:59.9]} 3... d5 {[%clk 0:02:53.1]}
4. e3 {[%clk 0:02:59.9]} 4... c5 {[%clk 0:02:53.5]} 5. c3 {[%clk 0:02:58.8]}
5... Bd6 {[%clk 0:02:53.7]} 6. Nbd2 {[%clk 0:02:58.5]} 6... Qc7 {[%clk
0:02:51.6]} 7. Bxd6 {[%clk 0:02:55.4]} 7... Qxd6 {[%clk 0:02:51.5]} 8. Ne5
{[%clk 0:02:56.1]} 8... Nbd7 {[%clk 0:02:51.2]} 9. f4 {[%clk 0:02:55.6]} 9...
O-O {[%clk 0:02:51.8]} 10. Bd3 {[%clk 0:02:55.5]} 10... b6 {[%clk 0:02:48.2]}
11. O-O {[%clk 0:02:55.2]} 11... Bb7 {[%clk 0:02:48.3]} 12. Qf3 {[%clk
0:02:50.7]} 12... Rac8 {[%clk 0:02:47.2]} 13. g4 {[%clk 0:02:48.9]} 13... Qe7
{[%clk 0:02:44.7]} 14. g5 {[%clk 0:02:47.1]} 14... Ne8 {[%clk 0:02:43.9]} 15.
Qh3 {[%clk 0:02:46.1]} 15... g6 {[%clk 0:02:43.4]} 16. Qh6 {[%clk 0:02:39.2]}
16... Nd6 {[%clk 0:02:29.6]} 17. Ndf3 {[%clk 0:02:39]} 17... f6 {[%clk
0:02:17.7]} 18. Nxd7 {[%clk 0:02:27.4]} 18... Qxd7 {[%clk 0:02:17.6]} 19. gxf6
{[%clk 0:02:19.7]} 19... Rxf6 {[%clk 0:02:18.5]} 20. Ne5 {[%clk 0:02:20.3]}
20... Qg7 {[%clk 0:02:17.4]} 21. Qxg7+ {[%clk 0:02:05.4]} 21... Kxg7 {[%clk
0:02:16.2]} 22. h4 {[%clk 0:02:06.3]} 22... Nf7 {[%clk 0:02:10.2]} 23. Ng4
{[%clk 0:02:01.6]} 23... Rf5 {[%clk 0:02:08.5]} 24. Bxf5 {[%clk 0:01:59.5]}
24... exf5 {[%clk 0:02:09.4]} 25. Ne5 {[%clk 0:02:00.2]} 25... Nd6 {[%clk
0:02:09.4]} 26. Rfd1 {[%clk 0:01:59.1]} 26... Kf6 {[%clk 0:02:06.2]} 27. dxc5
{[%clk 0:01:49.9]} 27... bxc5 {[%clk 0:02:04.9]} 28. c4 {[%clk 0:01:50.3]} 28...
Nxc4 {[%clk 0:01:59.2]} 29. Nxc4 {[%clk 0:01:48.8]} 29... dxc4 {[%clk
0:02:00.1]} 30. Rd7 {[%clk 0:01:47.3]} 30... Be4 {[%clk 0:01:58.8]} 31. Rad1
{[%clk 0:01:43.5]} 31... Bd3 {[%clk 0:01:55.1]} 32. b3 {[%clk 0:01:43.8]} 32...
Ke6 {[%clk 0:01:50.8]} 33. Rxa7 {[%clk 0:01:43.7]} 33... Rc6 {[%clk 0:01:36.1]}
34. Kf2 {[%clk 0:01:35.8]} 34... Rb6 {[%clk 0:01:32.4]} 35. Rxh7 {[%clk
0:01:16.9]} 35... cxb3 {[%clk 0:01:29.6]} 36. axb3 {[%clk 0:01:17.8]} 36... Rxb3
{[%clk 0:01:29.8]} 37. Ra1 {[%clk 0:01:00.9]} 37... Rb2+ {[%clk 0:01:28]} 38.
Kg3 {[%clk 0:01:00.8]} 38... Be4 {[%clk 0:01:24.6]} 39. Rd1 {[%clk 0:00:41.1]}
39... Rg2+ {[%clk 0:01:22.2]} 40. Kh3 {[%clk 0:00:40.4]} 40... Re2 {[%clk
0:01:23.1]} 41. Rhd7 {[%clk 0:00:27.2]} 41... Rxe3+ {[%clk 0:01:22.4]} 42. Kh2
{[%clk 0:00:27.7]} 42... Re2+ {[%clk 0:01:22.3]} 43. Kg3 {[%clk 0:00:27.4]}
43... Re3+ {[%clk 0:01:17.7]} 44. Kf2 {[%clk 0:00:27.2]} 44... Rf3+ {[%clk
0:01:18.1]} 45. Ke2 {[%clk 0:00:27.4]} 45... Rxf4 {[%clk 0:01:18.5]} 46. R1d6+
{[%clk 0:00:21.7]} 46... Ke5 {[%clk 0:01:18.1]} 47. Rxg6 {[%clk 0:00:20]} 47...
Rxh4 {[%clk 0:01:18.1]} 48. Rc7 {[%clk 0:00:19]} 48... Rh2+ {[%clk 0:01:14]} 49.
Ke1 {[%clk 0:00:17.2]} 49... Kd4 {[%clk 0:01:13.5]} 50. Rd7+ {[%clk 0:00:11]}
50... Ke3 {[%clk 0:01:13.2]} 51. Rg3+ {[%clk 0:00:11.2]} 51... Kf4 {[%clk
0:01:13.7]} 52. Rc3 {[%clk 0:00:10.7]} 52... Rh1+ {[%clk 0:01:05.7]} 53. Kf2
{[%clk 0:00:10.8]} 53... Rh2+ {[%clk 0:01:03.6]} 54. Kg1 {[%clk 0:00:11]} 54...
Rh1+ {[%clk 0:01:00.5]} 55. Kf2 {[%clk 0:00:11.4]} 55... Rh2+ {[%clk 0:01:00.4]}
56. Kg1 {[%clk 0:00:11.8]} 56... Rh1+ {[%clk 0:00:51.8]} 57. Kf2 {[%clk
0:00:11.7]} 1/2-1/2